[Event "Fagernes GM Open Autumn 2024"]
[Site "Fagernes"]
[Date "2024.10.13"]
[Round "9.16"]
[White "Gaikwad, Siddhant"]
[Black "Gudbrandsen, Gustav"]
[Result "1-0"]
[ECO "C11"]
[WhiteElo "2039"]
[BlackElo "2197"]
[Annotator "RC"]
[PlyCount "77"]
[EventDate "2024.10.03"]
[EventType "swiss"]
[EventCountry "NOR"]
[SourceTitle "playchess.com"]
[Source "ChessBase"]
[SourceQuality "1"]
[TimeControl "40/6000:2400+30"]

1. e4 {[%emt 0:00:00]} e6 {[%emt 0:00:00]} 2. d4 {[%emt 0:00:00]} d5 {[%emt 0:00:00]} 3. Nc3 {[%emt 0:00:00]} Nf6 {[%emt 0:00:00]} 4. e5 {[%emt 0:00:00]} Nfd7 {[%emt 0:00:00]} 5. f4 {[%emt 0:00:00]} c5 {[%emt 0:00:00]} 6. Nf3 {[%emt 0:00:00]} Nc6 {[%emt 0:00:00]} 7. Be3 {[%emt 0:00:00]} a6 {[%emt 0:00:35]} 8. a3 {[%emt 0:00:00]} cxd4 {[%emt 0:05:42]} 9. Nxd4 {[%emt 0:00:00]} Nxd4 {[%emt 0:00:13]} 10. Bxd4 {[%emt 0:00:00]} Bc5 {[%emt 0:00:18]} 11. Bxc5 {[%emt 0:10:50]} Nxc5 {[%emt 0:00:00]} 12. Qd4 {[%emt 0:00:56]} Nd7 {[%emt 0:07:39]} 13. O-O-O {[%emt 0:03:05]} O-O {[%emt 0:00:00]} 14. h4 {[%emt 0:02:37]} b5 {[%emt 0:03:01]} 15. f5 {[%emt 0:05:29]} Bb7 {[%emt 0:10:52]} 16. Bd3 {[%emt 0:05:28]} Qc7 {[%emt 0:06:05]} 17. Rhe1 {[%emt 0:05:00]} exf5 {[%emt 0:20:25]} 18. Bxf5 {[%emt 0:04:54]} Nc5 {[%emt 0:04:24]} 19. Qg4 {[%emt 0:06:07]} Rad8 {[%emt 0:01:54]} 20. h5 {[%emt 0:02:50]} Rfe8 {[%emt 0:03:34]} 21. h6 {[%emt 0:08:03]} g6 {[%emt 0:00:00]} 22. e6 {[%emt 0:00:07]} Nxe6 {[%emt 0:05:44]} 23. Rxe6 {[%emt 0:02:30]} Rxe6 {[%emt 0:06:49]} 24. Bxe6 {[%emt 0:00:00]} fxe6 {[%emt 0:00:00]} 25. Qxe6+ {[%emt 0:00:00]} Qf7 {[%emt 0:00:16]} 26. Qe5 {[%emt 0:04:41]} Re8 {[%emt 0:02:10]} 27. Qd4 {[%emt 0:01:10]} g5 {[%emt 0:06:12]} 28. Nxd5 {[%emt 0:03:37]} Bxd5 {[%emt 0:00:26]} 29. Qxd5 {[%emt 0:00:00]} Qxd5 {[%emt 0:00:00]} 30. Rxd5 {[%emt 0:00:00]} Re6 {[%emt 0:00:28]} 31. Rxg5+ {[%emt 0:00:00]} Kf8 {[%emt 0:00:00]} 32. Rf5+ {[%emt 0:05:44]} Ke7 {[%emt 0:00:00]} 33. g4 {[%emt 0:01:14]} Rxh6 {[%emt 0:03:11]} 34. Rh5 {[%emt 0:00:00]} Rg6 {[%emt 0:00:36]} 35. Rxh7+ {[%emt 0:00:00]} Kd6 {[%emt 0:02:51]} 36. g5 {[%emt 0:01:15]} Rxg5 {[%emt 0:03:13]} 37. Rh6+ {[%emt 0:00:00]} Kc5 {[%emt 0:00:00]} 38. b4+ {[%emt 0:01:05]} Kc4 {[%emt 0:00:43]} 39. Rxa6 {[%emt 0:00:00]} 1-0

[Event "Fagernes GM Open Autumn 2024"]
[Site "Fagernes"]
[Date "2024.10.13"]
[Round "9.17"]
[White "Sherman, Raem"]
[Black "Southcott-Moyers, Indy"]
[Result "1-0"]
[ECO "B15"]
[WhiteElo "2390"]
[BlackElo "2143"]
[Annotator "RC"]
[PlyCount "91"]
[EventDate "2024.10.03"]
[EventType "swiss"]
[EventCountry "NOR"]
[SourceTitle "playchess.com"]
[Source "ChessBase"]
[SourceQuality "1"]
[TimeControl "40/6000:2400+30"]

1. e4 {[%emt 0:00:00]} c6 {[%emt 0:00:00]} 2. d4 {[%emt 0:00:00]} d5 {[%emt 0:00:00]} 3. Nd2 {[%emt 0:00:00]} dxe4 {[%emt 0:00:00]} 4. Nxe4 {[%emt 0:00:00]} Nf6 {[%emt 0:00:00]} 5. Nxf6+ {[%emt 0:00:00]} exf6 {[%emt 0:00:00]} 6. c3 {[%emt 0:00:00]} Bd6 {[%emt 0:00:00]} 7. Bd3 {[%emt 0:00:00]} O-O {[%emt 0:00:00]} 8. Ne2 {[%emt 0:00:00]} Re8 {[%emt 0:00:09]} 9. Qc2 {[%emt 0:00:00]} h5 {[%emt 0:00:00]} 10. O-O {[%emt 0:00:00]} h4 {[%emt 0:00:00]} 11. Bf4 {[%emt 0:05:19]} Na6 {[%emt 0:00:00]} 12. Qd2 {[%emt 0:01:54]} Nc7 {[%emt 0:12:51]} 13. h3 {[%emt 0:02:51]} Be6 {[%emt 0:05:17]} 14. c4 {[%emt 0:05:53]} f5 {[%emt 0:09:44]} 15. Be3 {[%emt 0:07:35]} g6 {[%emt 0:11:03]} 16. Rfd1 {[%emt 0:03:24]} Be7 {[%emt 0:05:56]} 17. Nc3 {[%emt 0:02:59]} Bf6 {[%emt 0:13:10]} 18. Be2 {[%emt 0:02:17]} Rc8 {[%emt 0:01:05]} 19. Rac1 {[%emt 0:02:27]} a6 {[%emt 0:05:35]} 20. d5 {[%emt 0:12:25]} cxd5 {[%emt 0:02:15]} 21. cxd5 {[%emt 0:02:24]} Bxc3 {[%emt 0:03:00]} 22. Rxc3 {[%emt 0:03:33]} Nxd5 {[%emt 0:02:17]} 23. Rxc8 {[%emt 0:00:00]} Qxc8 {[%emt 0:00:00]} 24. Bd4 {[%emt 0:00:00]} Kh7 {[%emt 0:01:14]} 25. Bf3 {[%emt 0:01:14]} f4 {[%emt 0:04:26]} 26. b3 {[%emt 0:07:45]} Rd8 {[%emt 0:08:40]} 27. Ba1 {[%emt 0:05:23]} Rd7 {[%emt 0:01:50]} 28. Qb2 {[%emt 0:00:45]} Qg8 {[%emt 0:00:30]} 29. Rc1 {[%emt 0:03:33]} Rd8 {[%emt 0:01:13]} 30. Be4 {[%emt 0:03:12]} Kh6 {[%emt 0:02:47]} 31. Rd1 {[%emt 0:00:58]} f5 {[%emt 0:01:35]} 32. Bf3 {[%emt 0:01:10]} Qf7 {[%emt 0:00:44]} 33. Qe5 {[%emt 0:01:53]} Kg5 {[%emt 0:00:33]} 34. Bb2 {[%emt 0:00:54]} Kh6 {[%emt 0:01:33]} 35. Re1 {[%emt 0:00:09]} Nc7 {[%emt 0:01:16]} 36. Qxf4+ {[%emt 0:00:08]} g5 {[%emt 0:00:00]} 37. Qe5 {[%emt 0:00:00]} Bd5 {[%emt 0:00:00]} 38. Rc1 {[%emt 0:01:22]} Nb5 {[%emt 0:00:26]} 39. Bxd5 {[%emt 0:02:27]} Rxd5 {[%emt 0:00:00]} 40. Qh8+ {[%emt 0:00:00]} Qh7 {[%emt 0:00:00]} 41. Bg7+ {[%emt 0:42:00]} Kg6 {[%emt 0:40:20]} 42. Qe8+ {[%emt 0:00:19]} Kxg7 {[%emt 0:00:08]} 43. Qe7+ {[%emt 0:00:05]} Kh6 {[%emt 0:01:15]} 44. Qe6+ {[%emt 0:00:11]} Qg6 {[%emt 0:00:18]} 45. Qxd5 {[%emt 0:00:08]} g4 {[%emt 0:00:05]} 46. Rc8 {[%emt 0:03:49]} 1-0

[Event "Fagernes GM Open Autumn 2024"]
[Site "Fagernes"]
[Date "2024.10.13"]
[Round "9.18"]
[White "Harish, Neeraj"]
[Black "Nagare Akhilesh"]
[Result "1-0"]
[ECO "B38"]
[WhiteElo "2024"]
[BlackElo "2245"]
[Annotator "RC"]
[PlyCount "99"]
[EventDate "2024.10.03"]
[EventType "swiss"]
[EventCountry "NOR"]
[SourceTitle "playchess.com"]
[Source "ChessBase"]
[SourceQuality "1"]
[TimeControl "40/6000:2400+30"]

1. e4 {[%emt 0:00:00]} c5 {[%emt 0:06:00]} 2. Nf3 {[%emt 0:00:00]} Nc6 {[%emt 0:00:00]} 3. d4 {[%emt 0:00:00]} cxd4 {[%emt 0:00:00]} 4. Nxd4 {[%emt 0:00:00]} g6 {[%emt 0:00:00]} 5. c4 {[%emt 0:00:00]} Bg7 {[%emt 0:00:00]} 6. Be3 {[%emt 0:00:00]} d6 {[%emt 0:00:00]} 7. Nc3 {[%emt 0:00:00]} Nh6 {[%emt 0:00:00]} 8. f3 {[%emt 0:08:19]} Qb6 {[%emt 0:14:30]} 9. Nf5 {[%emt 0:04:35]} gxf5 {[%emt 0:09:13]} 10. Bxb6 {[%emt 0:00:00]} axb6 {[%emt 0:00:00]} 11. Bd3 {[%emt 0:07:27]} fxe4 {[%emt 0:03:54]} 12. Bxe4 {[%emt 0:01:49]} O-O {[%emt 0:01:56]} 13. O-O {[%emt 0:02:56]} f5 {[%emt 0:02:24]} 14. Bd3 {[%emt 0:02:41]} f4 {[%emt 0:01:41]} 15. Re1 {[%emt 0:02:52]} Ra5 {[%emt 0:00:00]} 16. Nb5 {[%emt 0:03:55]} Bxb2 {[%emt 0:00:23]} 17. Bxh7+ {[%emt 0:03:13]} Kh8 {[%emt 0:00:00]} 18. Be4 {[%emt 0:01:58]} Nf5 {[%emt 0:00:00]} 19. Qd2 {[%emt 0:05:36]} Be5 {[%emt 0:00:00]} 20. Rad1 {[%emt 0:01:24]} Be6 {[%emt 0:02:14]} 21. Bd3 {[%emt 0:11:34]} Rf6 {[%emt 0:03:11]} 22. Qf2 {[%emt 0:09:18]} Ne3 {[%emt 0:06:57]} 23. Qh4+ {[%emt 0:07:23]} Kg8 {[%emt 0:00:40]} 24. Qg5+ {[%emt 0:02:28]} Kf8 {[%emt 0:00:00]} 25. Bg6 {[%emt 0:01:21]} Rxg6 {[%emt 0:12:10]} 26. Qxg6 {[%emt 0:00:00]} Bxc4 {[%emt 0:01:13]} 27. Nc7 {[%emt 0:04:33]} Nxd1 {[%emt 0:03:49]} 28. Rxd1 {[%emt 0:00:00]} Rxa2 {[%emt 0:00:00]} 29. h4 {[%emt 0:00:58]} Bf7 {[%emt 0:00:36]} 30. Qh6+ {[%emt 0:00:15]} Kg8 {[%emt 0:00:00]} 31. Ne6 {[%emt 0:01:01]} Ra8 {[%emt 0:02:24]} 32. Ng5 {[%emt 0:00:11]} Nd8 {[%emt 0:00:40]} 33. Nxf7 {[%emt 0:01:30]} Nxf7 {[%emt 0:00:42]} 34. Qg6+ {[%emt 0:00:00]} Kf8 {[%emt 0:00:00]} 35. h5 {[%emt 0:00:00]} Ra1 {[%emt 0:03:01]} 36. Rxa1 {[%emt 0:00:00]} Bxa1 {[%emt 0:00:00]} 37. h6 {[%emt 0:02:09]} b5 {[%emt 0:03:07]} 38. h7 {[%emt 0:00:56]} Bg7 {[%emt 0:00:00]} 39. Qg4 {[%emt 0:00:40]} e5 {[%emt 0:00:00]} 40. Qc8+ {[%emt 0:00:43]} Ke7 {[%emt 0:00:00]} 41. Qxb7+ {[%emt 0:41:17]} Kf6 {[%emt 0:39:37]} 42. Qxb5 {[%emt 0:00:20]} Ng5 {[%emt 0:04:04]} 43. Qd3 {[%emt 0:04:16]} Nf7 {[%emt 0:02:35]} 44. Kh2 {[%emt 0:00:53]} Kg5 {[%emt 0:00:37]} 45. Kh3 {[%emt 0:00:51]} Nh8 {[%emt 0:00:27]} 46. Qxd6 {[%emt 0:00:35]} Ng6 {[%emt 0:00:17]} 47. Qe6 {[%emt 0:00:00]} Kh6 {[%emt 0:00:00]} 48. Kg4 {[%emt 0:00:00]} Kxh7 {[%emt 0:00:00]} 49. Qf5 {[%emt 0:00:00]} Kh6 {[%emt 0:00:00]} 50. Qh5# {[%emt 0:00:00]} 1-0

[Event "Fagernes GM Open Autumn 2024"]
[Site "Fagernes"]
[Date "2024.10.13"]
[Round "9.19"]
[White "Vijayakumar, Rishi"]
[Black "Skotheim, Andreas"]
[Result "1/2-1/2"]
[ECO "E15"]
[WhiteElo "2172"]
[BlackElo "2234"]
[Annotator "RC"]
[PlyCount "53"]
[EventDate "2024.10.03"]
[EventType "swiss"]
[EventCountry "NOR"]
[SourceTitle "playchess.com"]
[Source "ChessBase"]
[SourceQuality "1"]
[TimeControl "40/6000:2400+30"]

1. d4 {[%emt 0:00:00]} Nf6 {[%emt 0:04:43]} 2. c4 {[%emt 0:00:00]} e6 {[%emt 0:00:06]} 3. Nf3 {[%emt 0:00:00]} b6 {[%emt 0:00:00]} 4. g3 {[%emt 0:00:00]} Ba6 {[%emt 0:00:00]} 5. Qc2 {[%emt 0:00:04]} c5 {[%emt 0:00:00]} 6. d5 {[%emt 0:03:12]} exd5 {[%emt 0:00:00]} 7. cxd5 {[%emt 0:00:00]} Bb7 {[%emt 0:00:00]} 8. Bg2 {[%emt 0:00:00]} Nxd5 {[%emt 0:00:00]} 9. O-O {[%emt 0:00:32]} Nc6 {[%emt 0:00:00]} 10. Rd1 {[%emt 0:00:00]} Be7 {[%emt 0:00:00]} 11. Qf5 {[%emt 0:00:00]} Nf6 {[%emt 0:00:00]} 12. e4 {[%emt 0:00:00]} g6 {[%emt 0:00:00]} 13. Qf4 {[%emt 0:00:00]} O-O {[%emt 0:00:00]} 14. e5 {[%emt 0:01:16]} Nh5 {[%emt 0:00:00]} 15. Qc4 {[%emt 0:03:51]} Re8 {[%emt 0:00:05]} 16. Nc3 {[%emt 0:02:08]} Na5 {[%emt 0:00:56]} 17. Qf1 {[%emt 0:00:10]} Ng7 {[%emt 0:05:21]} 18. Nd5 {[%emt 0:01:34]} Ne6 {[%emt 0:07:47]} 19. Nd2 {[%emt 0:16:38]} Nd4 {[%emt 0:10:55]} 20. b4 {[%emt 0:02:57]} cxb4 {[%emt 0:18:23]} 21. Bb2 {[%emt 0:00:24]} Bxd5 {[%emt 0:18:40]} 22. Bxd5 {[%emt 0:00:29]} Nac6 {[%emt 0:02:32]} 23. Nb3 {[%emt 0:25:33]} Nxb3 {[%emt 0:01:41]} 24. axb3 {[%emt 0:01:41]} Qc7 {[%emt 0:01:32]} 25. Qc4 {[%emt 0:07:40]} Rf8 {[%emt 0:02:32]} 26. Rac1 {[%emt 0:18:30]} Bc5 {[%emt 0:01:49]} 27. Qh4 {[%emt 0:04:16]} 1/2-1/2

[Event "Fagernes GM Open Autumn 2024"]
[Site "Fagernes"]
[Date "2024.10.13"]
[Round "9.20"]
[White "Welling, Gerard"]
[Black "Myagmarsuren, Evsuld"]
[Result "0-1"]
[ECO "A11"]
[WhiteElo "2206"]
[BlackElo "2171"]
[Annotator "RC"]
[PlyCount "84"]
[EventDate "2024.10.03"]
[EventType "swiss"]
[EventCountry "NOR"]
[SourceTitle "playchess.com"]
[Source "ChessBase"]
[SourceQuality "1"]
[TimeControl "40/6000:2400+30"]

1. Nf3 {[%emt 0:00:00]} d5 {[%emt 0:00:00]} 2. c4 {[%emt 0:00:00]} c6 {[%emt 0:00:00]} 3. e3 {[%emt 0:00:00]} Nf6 {[%emt 0:00:00]} 4. Nc3 {[%emt 0:00:00]} e6 {[%emt 0:00:00]} 5. b3 {[%emt 0:00:00]} Nbd7 {[%emt 0:00:00]} 6. Bb2 {[%emt 0:00:00]} Bd6 {[%emt 0:00:00]} 7. Be2 {[%emt 0:00:06]} O-O {[%emt 0:00:00]} 8. Qc2 {[%emt 0:01:29]} Qe7 {[%emt 0:00:00]} 9. O-O {[%emt 0:02:39]} b6 {[%emt 0:00:00]} 10. cxd5 {[%emt 0:00:58]} exd5 {[%emt 0:00:00]} 11. Nd4 {[%emt 0:00:00]} Bb7 {[%emt 0:24:32]} 12. Nf5 {[%emt 0:00:32]} Qe5 {[%emt 0:00:26]} 13. Nxd6 {[%emt 0:00:49]} Qxd6 {[%emt 0:00:00]} 14. Qf5 {[%emt 0:06:15]} Qe6 {[%emt 0:01:29]} 15. Qf4 {[%emt 0:00:45]} Rfe8 {[%emt 0:02:20]} 16. Rac1 {[%emt 0:09:27]} Ne5 {[%emt 0:06:19]} 17. Qg3 {[%emt 0:04:12]} Rad8 {[%emt 0:04:18]} 18. d4 {[%emt 0:02:18]} Ned7 {[%emt 0:03:15]} 19. Bd3 {[%emt 0:00:34]} Nb8 {[%emt 0:00:55]} 20. Rfe1 {[%emt 0:07:30]} Ba6 {[%emt 0:00:41]} 21. Bb1 {[%emt 0:00:00]} c5 {[%emt 0:10:56]} 22. Rcd1 {[%emt 0:06:13]} Nc6 {[%emt 0:12:11]} 23. Ne2 {[%emt 0:02:31]} c4 {[%emt 0:03:27]} 24. bxc4 {[%emt 0:02:32]} Bxc4 {[%emt 0:01:08]} 25. Nf4 {[%emt 0:02:37]} Qd6 {[%emt 0:01:28]} 26. f3 {[%emt 0:01:24]} Qb4 {[%emt 0:03:44]} 27. Qf2 {[%emt 0:00:00]} Qa4 {[%emt 0:01:34]} 28. Bc3 {[%emt 0:13:04]} b5 {[%emt 0:03:52]} 29. Nd3 {[%emt 0:02:57]} b4 {[%emt 0:00:04]} 30. Nc5 {[%emt 0:03:16]} Qb5 {[%emt 0:00:00]} 31. Bb2 {[%emt 0:00:00]} Nd7 {[%emt 0:01:09]} 32. Nxd7 {[%emt 0:01:07]} Rxd7 {[%emt 0:01:01]} 33. e4 {[%emt 0:01:29]} Rde7 {[%emt 0:00:00]} 34. e5 {[%emt 0:00:05]} Qa5 {[%emt 0:03:13]} 35. Qc2 {[%emt 0:06:53]} g6 {[%emt 0:00:00]} 36. f4 {[%emt 0:01:21]} Qb6 {[%emt 0:03:52]} 37. Qf2 {[%emt 0:00:52]} a5 {[%emt 0:01:06]} 38. f5 {[%emt 0:00:25]} a4 {[%emt 0:05:09]} 39. f6 {[%emt 0:00:52]} Re6 {[%emt 0:00:20]} 40. Qf4 {[%emt 0:01:17]} Nxe5 {[%emt 0:00:09]} 41. Qh6 {[%emt 0:43:28]} Nf3+ {[%emt 0:02:59]} 42. Kf2 {[%emt 0:00:00]} Re2+ {[%emt 0:00:07]} 0-1

[Event "Fagernes GM Open Autumn 2024"]
[Site "Fagernes"]
[Date "2024.10.13"]
[Round "9.21"]
[White "Krishnan, Ritvik"]
[Black "Kaewpitakkun, Pantham"]
[Result "1-0"]
[ECO "B81"]
[WhiteElo "2206"]
[BlackElo "2023"]
[Annotator "RC"]
[PlyCount "55"]
[EventDate "2024.10.03"]
[EventType "swiss"]
[EventCountry "NOR"]
[SourceTitle "playchess.com"]
[Source "ChessBase"]
[SourceQuality "1"]
[TimeControl "40/6000:2400+30"]

1. e4 {[%emt 0:00:00]} c5 {[%emt 0:00:00]} 2. Nf3 {[%emt 0:00:00]} d6 {[%emt 0:00:00]} 3. d4 {[%emt 0:00:00]} cxd4 {[%emt 0:00:00]} 4. Nxd4 {[%emt 0:00:00]} Nf6 {[%emt 0:00:00]} 5. Nc3 {[%emt 0:00:00]} a6 {[%emt 0:00:00]} 6. Be3 {[%emt 0:00:00]} e6 {[%emt 0:00:00]} 7. g4 {[%emt 0:00:00]} e5 {[%emt 0:13:45]} 8. Nf5 {[%emt 0:00:00]} g6 {[%emt 0:00:00]} 9. g5 {[%emt 0:00:00]} gxf5 {[%emt 0:00:38]} 10. exf5 {[%emt 0:00:00]} d5 {[%emt 0:06:19]} 11. Qf3 {[%emt 0:00:00]} d4 {[%emt 0:08:11]} 12. O-O-O {[%emt 0:00:00]} Qc7 {[%emt 0:03:33]} 13. Rxd4 {[%emt 0:00:00]} Qc6 {[%emt 0:14:36]} 14. Qxc6+ {[%emt 0:16:02]} bxc6 {[%emt 0:01:36]} 15. Rc4 {[%emt 0:09:06]} Nh5 {[%emt 0:04:49]} 16. Bg2 {[%emt 0:06:39]} Bd7 {[%emt 0:06:49]} 17. Nd5 {[%emt 0:08:54]} cxd5 {[%emt 0:09:57]} 18. Bxd5 {[%emt 0:00:00]} Nc6 {[%emt 0:00:00]} 19. Rxc6 {[%emt 0:03:45]} Rd8 {[%emt 0:04:22]} 20. Rd1 {[%emt 0:07:49]} Nf4 {[%emt 0:09:28]} 21. Bxf4 {[%emt 0:03:43]} exf4 {[%emt 0:02:17]} 22. Re1+ {[%emt 0:00:00]} Be6 {[%emt 0:00:16]} 23. c4 {[%emt 0:02:12]} Bb4 {[%emt 0:01:07]} 24. Re4 {[%emt 0:00:24]} O-O {[%emt 0:03:47]} 25. fxe6 {[%emt 0:00:11]} fxe6 {[%emt 0:00:00]} 26. Rexe6 {[%emt 0:00:12]} a5 {[%emt 0:00:14]} 27. Rh6+ {[%emt 0:00:09]} Kh8 {[%emt 0:00:00]} 28. Rc7 {[%emt 0:00:00]} 1-0

[Event "Fagernes GM Open Autumn 2024"]
[Site "Fagernes"]
[Date "2024.10.13"]
[Round "9.22"]
[White "Advaitt Srikant Koduri"]
[Black "Westrum, Kim Roger Hansen"]
[Result "1-0"]
[ECO "A48"]
[WhiteElo "2162"]
[BlackElo "2205"]
[Annotator "RC"]
[PlyCount "119"]
[EventDate "2024.10.03"]
[EventType "swiss"]
[EventCountry "NOR"]
[SourceTitle "playchess.com"]
[Source "ChessBase"]
[SourceQuality "1"]
[TimeControl "40/6000:2400+30"]

1. d4 {[%emt 0:00:14]} Nf6 {[%emt 0:00:00]} 2. Nf3 {[%emt 0:00:21]} g6 {[%emt 0:00:41]} 3. Bf4 {[%emt 0:00:00]} Bg7 {[%emt 0:00:00]} 4. e3 {[%emt 0:00:00]} d6 {[%emt 0:00:00]} 5. h3 {[%emt 0:00:00]} O-O {[%emt 0:00:00]} 6. Be2 {[%emt 0:01:21]} Nfd7 {[%emt 0:00:00]} 7. O-O {[%emt 0:02:42]} e5 {[%emt 0:00:00]} 8. Bh2 {[%emt 0:00:55]} Nc6 {[%emt 0:00:00]} 9. c4 {[%emt 0:06:45]} f5 {[%emt 0:00:00]} 10. Nc3 {[%emt 0:01:01]} e4 {[%emt 0:00:00]} 11. Nd2 {[%emt 0:05:11]} Nf6 {[%emt 0:00:00]} 12. Rb1 {[%emt 0:14:13]} g5 {[%emt 0:00:00]} 13. b4 {[%emt 0:05:13]} Ne7 {[%emt 0:00:00]} 14. Qc2 {[%emt 0:09:13]} Ng6 {[%emt 0:00:00]} 15. a4 {[%emt 0:06:59]} Kh8 {[%emt 0:00:00]} 16. c5 {[%emt 0:00:35]} d5 {[%emt 0:00:00]} 17. f3 {[%emt 0:02:33]} Bh6 {[%emt 0:39:16]} 18. fxe4 {[%emt 0:04:29]} fxe4 {[%emt 0:00:17]} 19. g4 {[%emt 0:00:16]} Bg7 {[%emt 0:01:23]} 20. Rf2 {[%emt 0:04:33]} Be6 {[%emt 0:00:08]} 21. Nf1 {[%emt 0:02:21]} Nh4 {[%emt 0:03:09]} 22. Bg3 {[%emt 0:01:03]} h5 {[%emt 0:04:44]} 23. Nh2 {[%emt 0:00:15]} hxg4 {[%emt 0:00:00]} 24. hxg4 {[%emt 0:00:00]} Qd7 {[%emt 0:00:00]} 25. Qd1 {[%emt 0:00:00]} Ng8 {[%emt 0:04:51]} 26. Qe1 {[%emt 0:03:11]} Rxf2 {[%emt 0:01:51]} 27. Bxf2 {[%emt 0:00:00]} Bf6 {[%emt 0:00:00]} 28. Kh1 {[%emt 0:00:07]} Nh6 {[%emt 0:00:00]} 29. Qg1 {[%emt 0:01:21]} Rg8 {[%emt 0:09:56]} 30. Rf1 {[%emt 0:00:00]} Bd8 {[%emt 0:00:40]} 31. Bg3 {[%emt 0:01:27]} Kh7 {[%emt 0:00:43]} 32. Be5 {[%emt 0:00:00]} Rg6 {[%emt 0:00:16]} 33. Qg3 {[%emt 0:00:46]} Nf7 {[%emt 0:00:36]} 34. Kg1 {[%emt 0:02:30]} Rh6 {[%emt 0:05:44]} 35. Nb5 {[%emt 0:04:07]} a6 {[%emt 0:02:03]} 36. Nxc7 {[%emt 0:02:11]} Nxe5 {[%emt 0:00:00]} 37. Nxe6 {[%emt 0:00:00]} Rxe6 {[%emt 0:00:00]} 38. dxe5 {[%emt 0:00:00]} Bc7 {[%emt 0:00:00]} 39. Qf2 {[%emt 0:00:00]} Re7 {[%emt 0:00:09]} 40. Qf6 {[%emt 0:00:19]} Rg7 {[%emt 0:02:02]} 41. b5 {[%emt 0:44:58]} axb5 {[%emt 0:40:53]} 42. axb5 {[%emt 0:00:24]} Qe7 {[%emt 0:00:13]} 43. Qxe7 {[%emt 0:01:16]} Rxe7 {[%emt 0:00:08]} 44. e6 {[%emt 0:00:14]} Kg7 {[%emt 0:00:38]} 45. Rd1 {[%emt 0:00:44]} Rxe6 {[%emt 0:01:25]} 46. Rxd5 {[%emt 0:00:23]} Kf6 {[%emt 0:00:06]} 47. b6 {[%emt 0:08:29]} Bg3 {[%emt 0:07:43]} 48. Nf1 {[%emt 0:00:00]} Be1 {[%emt 0:00:00]} 49. Nd2 {[%emt 0:00:00]} Bxd2 {[%emt 0:00:00]} 50. Rxd2 {[%emt 0:00:00]} Rc6 {[%emt 0:00:00]} 51. Rd5 {[%emt 0:00:00]} Ng6 {[%emt 0:00:00]} 52. Rf5+ {[%emt 0:00:00]} Ke6 {[%emt 0:00:00]} 53. Bc4+ {[%emt 0:00:00]} Ke7 {[%emt 0:00:00]} 54. Rxg5 {[%emt 0:00:00]} Nh4 {[%emt 0:00:00]} 55. Kf2 {[%emt 0:00:00]} Nf3 {[%emt 0:00:00]} 56. Rf5 {[%emt 0:00:00]} Nd2 {[%emt 0:00:00]} 57. Bb5 {[%emt 0:00:00]} Rg6 {[%emt 0:00:00]} 58. Re5+ {[%emt 0:00:00]} Kf6 {[%emt 0:00:00]} 59. Rd5 {[%emt 0:00:00]} Nf3 {[%emt 0:00:00]} 60. Rd6+ {[%emt 0:00:00]} 1-0

[Event "Fagernes GM Open Autumn 2024"]
[Site "Fagernes"]
[Date "2024.10.13"]
[Round "9.23"]
[White "Soham Datar"]
[Black "Gasland, Lukas Dominik"]
[Result "1-0"]
[ECO "D03"]
[WhiteElo "2188"]
[BlackElo "1905"]
[Annotator "RC"]
[PlyCount "71"]
[EventDate "2024.10.03"]
[EventType "swiss"]
[EventCountry "NOR"]
[SourceTitle "playchess.com"]
[Source "ChessBase"]
[SourceQuality "1"]
[TimeControl "40/6000:2400+30"]

1. Nf3 {[%emt 0:05:35]} Nf6 {[%emt 0:00:00]} 2. d4 {[%emt 0:00:16]} e6 {[%emt 0:00:00]} 3. Bg5 {[%emt 0:00:00]} c5 {[%emt 0:00:55]} 4. e3 {[%emt 0:00:00]} Nc6 {[%emt 0:01:39]} 5. Nbd2 {[%emt 0:00:00]} d5 {[%emt 0:01:05]} 6. c3 {[%emt 0:00:00]} Qb6 {[%emt 0:01:58]} 7. Qb3 {[%emt 0:08:08]} c4 {[%emt 0:03:28]} 8. Qc2 {[%emt 0:00:00]} Qa5 {[%emt 0:03:05]} 9. e4 {[%emt 0:09:15]} dxe4 {[%emt 0:09:27]} 10. Bxf6 {[%emt 0:28:00]} exf3 {[%emt 0:10:23]} 11. Bh4 {[%emt 0:00:59]} b5 {[%emt 0:07:11]} 12. Nxf3 {[%emt 0:00:16]} Bd6 {[%emt 0:03:38]} 13. Be2 {[%emt 0:00:12]} O-O {[%emt 0:00:59]} 14. Bg3 {[%emt 0:01:27]} Qc7 {[%emt 0:03:58]} 15. a4 {[%emt 0:01:07]} bxa4 {[%emt 0:11:40]} 16. Rxa4 {[%emt 0:00:55]} Bb7 {[%emt 0:00:00]} 17. Rxc4 {[%emt 0:00:00]} Qe7 {[%emt 0:02:55]} 18. Bxd6 {[%emt 0:00:14]} Qxd6 {[%emt 0:00:00]} 19. O-O {[%emt 0:01:00]} Rab8 {[%emt 0:02:23]} 20. Ng5 {[%emt 0:03:09]} f5 {[%emt 0:01:30]} 21. Rc5 {[%emt 0:00:32]} Rf6 {[%emt 0:00:04]} 22. Bc4 {[%emt 0:10:30]} Rbf8 {[%emt 0:04:46]} 23. Re1 {[%emt 0:03:03]} Nd8 {[%emt 0:07:02]} 24. f3 {[%emt 0:08:31]} Rh6 {[%emt 0:01:49]} 25. g3 {[%emt 0:02:05]} Kh8 {[%emt 0:01:26]} 26. f4 {[%emt 0:02:32]} Rg6 {[%emt 0:00:51]} 27. Qe2 {[%emt 0:02:57]} Rxg5 {[%emt 0:05:50]} 28. fxg5 {[%emt 0:00:00]} f4 {[%emt 0:01:38]} 29. Qe5 {[%emt 0:00:36]} Qb6 {[%emt 0:00:00]} 30. Rc7 {[%emt 0:01:04]} Rg8 {[%emt 0:01:50]} 31. b4 {[%emt 0:00:00]} fxg3 {[%emt 0:00:31]} 32. hxg3 {[%emt 0:00:00]} Bd5 {[%emt 0:03:24]} 33. Bxd5 {[%emt 0:00:00]} exd5 {[%emt 0:00:00]} 34. Rc8 {[%emt 0:00:28]} Qg6 {[%emt 0:00:01]} 35. Qxd5 {[%emt 0:00:11]} Qd3 {[%emt 0:00:00]} 36. Qe5 {[%emt 0:00:12]} 1-0